[Event "*** Titled Tuesday Blitz"]
[Site "Chess.com"]
[Date "2021.02.02"]
[Round "2"]
[White "ozates"]
[Black "Chuchofrio1"]
[Result "1-0"]
[WhiteElo "2470"]
[BlackElo "2259"]
[TimeControl "180+1"]
[EndTime "10:17:28 PST"]
[Termination "ozates won by resignation"]

1. Nf3 {[%clk 0:03:00.9]} 1... Nf6 {[%clk 0:02:59]} 2. g3 {[%clk 0:03:01.2]}
2... g6 {[%clk 0:02:54.2]} 3. c4 {[%clk 0:03:00.8]} 3... Bg7 {[%clk 0:02:54.4]}
4. Nc3 {[%clk 0:03:00.1]} 4... O-O {[%clk 0:02:54.9]} 5. Bg2 {[%clk 0:02:59.9]}
5... d6 {[%clk 0:02:55.4]} 6. O-O {[%clk 0:02:58.6]} 6... e5 {[%clk 0:02:53]} 7.
d3 {[%clk 0:02:57.2]} 7... Nc6 {[%clk 0:02:50.5]} 8. Rb1 {[%clk 0:02:57.2]} 8...
a5 {[%clk 0:02:49.4]} 9. a3 {[%clk 0:02:56.9]} 9... Re8 {[%clk 0:02:44.6]} 10.
b4 {[%clk 0:02:54.1]} 10... axb4 {[%clk 0:02:43.3]} 11. axb4 {[%clk 0:02:55]}
11... Bf5 {[%clk 0:02:38.1]} 12. b5 {[%clk 0:02:54.5]} 12... Ne7 {[%clk
0:02:36.1]} 13. Nh4 {[%clk 0:02:53.7]} 13... Bc8 {[%clk 0:02:34.3]} 14. Bd2
{[%clk 0:02:49.5]} 14... Nh5 {[%clk 0:02:30.4]} 15. Ra1 {[%clk 0:02:38.3]} 15...
Rxa1 {[%clk 0:02:28.6]} 16. Qxa1 {[%clk 0:02:39.1]} 16... f5 {[%clk 0:02:26.2]}
17. Nd5 {[%clk 0:02:35.7]} 17... Nxd5 {[%clk 0:02:24.8]} 18. Bxd5+ {[%clk
0:02:35.5]} 18... Be6 {[%clk 0:02:23.1]} 19. Bxb7 {[%clk 0:02:34.8]} 19... f4
{[%clk 0:02:18.4]} 20. Bf3 {[%clk 0:02:29.7]} 20... Qc8 {[%clk 0:02:14.1]} 21.
Bxh5 {[%clk 0:02:28.7]} 21... gxh5 {[%clk 0:02:13.9]} 22. Bc3 {[%clk 0:02:21.1]}
22... Qd8 {[%clk 0:02:11.7]} 23. Kh1 {[%clk 0:02:09.9]} 23... fxg3 {[%clk
0:02:08.5]} 24. fxg3 {[%clk 0:02:07.3]} 24... Rf8 {[%clk 0:02:07.1]} 25. Kg1
{[%clk 0:02:01.6]} 25... Qg5 {[%clk 0:02:01.3]} 26. Rxf8+ {[%clk 0:01:59.6]}
26... Bxf8 {[%clk 0:01:59]} 27. Kf2 {[%clk 0:01:21.2]} 27... Bh6 {[%clk
0:01:49.6]} 28. Qa8+ {[%clk 0:01:15.7]} 28... Kg7 {[%clk 0:01:45.1]} 29. Qf3
{[%clk 0:01:13.9]} 29... Bg4 {[%clk 0:01:39.9]} 30. Qe4 {[%clk 0:01:13.5]} 30...
Qf6+ {[%clk 0:01:38.5]} 31. Nf3 {[%clk 0:01:12.8]} 31... h4 {[%clk 0:01:21]} 32.
Qxg4+ {[%clk 0:01:11.8]} 1-0

[Event "*** Titled Tuesday Blitz"]
[Site "Chess.com"]
[Date "2021.02.02"]
[Round "2"]
[White "Dedic8"]
[Black "Isajevsky_Anton"]
[Result "1-0"]
[WhiteElo "2811"]
[BlackElo "2516"]
[TimeControl "180+1"]
[EndTime "10:17:42 PST"]
[Termination "Dedic8 won by resignation"]

1. e4 {[%clk 0:03:00.7]} 1... c5 {[%clk 0:02:59.1]} 2. Nf3 {[%clk 0:03:00.5]}
2... d6 {[%clk 0:02:59.3]} 3. d4 {[%clk 0:03:00.4]} 3... cxd4 {[%clk 0:03:00.2]}
4. Nxd4 {[%clk 0:03:01.3]} 4... Nf6 {[%clk 0:03:00.6]} 5. Nc3 {[%clk 0:03:01.4]}
5... Bd7 {[%clk 0:02:59.3]} 6. f3 {[%clk 0:02:58.8]} 6... Nc6 {[%clk 0:02:59.2]}
7. Be3 {[%clk 0:02:58.8]} 7... Rc8 {[%clk 0:02:57.8]} 8. Qd2 {[%clk 0:02:58.6]}
8... Ne5 {[%clk 0:02:57.1]} 9. O-O-O {[%clk 0:02:57.9]} 9... a6 {[%clk
0:02:56.5]} 10. Kb1 {[%clk 0:02:56.6]} 10... b5 {[%clk 0:02:34.4]} 11. a3 {[%clk
0:02:56.6]} 11... e6 {[%clk 0:02:32.8]} 12. g4 {[%clk 0:02:55.8]} 12... Nc4
{[%clk 0:02:11.8]} 13. Bxc4 {[%clk 0:02:55.3]} 13... Rxc4 {[%clk 0:02:12.7]} 14.
h4 {[%clk 0:02:47]} 14... Qc7 {[%clk 0:02:10.6]} 15. h5 {[%clk 0:02:46.4]} 15...
h6 {[%clk 0:01:56.9]} 16. g5 {[%clk 0:02:29.1]} 16... hxg5 {[%clk 0:01:56.9]}
17. Bxg5 {[%clk 0:02:29.6]} 17... Rxh5 {[%clk 0:01:28.4]} 18. Bxf6 {[%clk
0:02:29.3]} 18... Rxh1 {[%clk 0:01:27.9]} 19. Rxh1 {[%clk 0:02:30.2]} 19... gxf6
{[%clk 0:01:28.3]} 20. Rh8 {[%clk 0:02:30.9]} 20... Bc8 {[%clk 0:00:45.6]} 21.
Qh6 {[%clk 0:01:25.4]} 21... Qe7 {[%clk 0:00:43.8]} 22. Nf5 {[%clk 0:01:26]}
22... Kd7 {[%clk 0:00:41]} 23. Rxf8 {[%clk 0:01:25]} 23... exf5 {[%clk
0:00:40.4]} 24. Nd5 {[%clk 0:01:25.4]} 1-0

[Event "*** Titled Tuesday Blitz"]
[Site "Chess.com"]
[Date "2021.02.02"]
[Round "2"]
[White "FedaMaster"]
[Black "BahadirOzen"]
[Result "1/2-1/2"]
[WhiteElo "2506"]
[BlackElo "2733"]
[TimeControl "180+1"]
[EndTime "10:17:42 PST"]
[Termination "Game drawn by agreement"]

1. e4 {[%clk 0:03:00.9]} 1... e5 {[%clk 0:02:59.4]} 2. d4 {[%clk 0:03:00.8]}
2... exd4 {[%clk 0:02:58.5]} 3. Bc4 {[%clk 0:03:01.7]} 3... Nf6 {[%clk
0:02:56.2]} 4. Nf3 {[%clk 0:03:02]} 4... Nc6 {[%clk 0:02:51.3]} 5. O-O {[%clk
0:03:02.4]} 5... Nxe4 {[%clk 0:02:50.2]} 6. Re1 {[%clk 0:03:02.7]} 6... d5
{[%clk 0:02:50.7]} 7. Bxd5 {[%clk 0:03:03.3]} 7... Qxd5 {[%clk 0:02:51.2]} 8.
Nc3 {[%clk 0:03:04]} 8... Qh5 {[%clk 0:02:48.4]} 9. Nxe4 {[%clk 0:03:04.3]} 9...
Be6 {[%clk 0:02:48.4]} 10. Bg5 {[%clk 0:03:04.8]} 10... Bd6 {[%clk 0:02:46.1]}
11. h4 {[%clk 0:03:05.3]} 11... O-O {[%clk 0:02:23.6]} 12. Nxd6 {[%clk
0:03:04.8]} 12... cxd6 {[%clk 0:02:22.9]} 13. Nxd4 {[%clk 0:03:05.4]} 13... Qxd1
{[%clk 0:02:20.2]} 14. Raxd1 {[%clk 0:03:06.3]} 14... Nxd4 {[%clk 0:02:18.8]}
15. Rxd4 {[%clk 0:03:07.2]} 15... d5 {[%clk 0:02:17.9]} 16. c3 {[%clk
0:03:06.2]} 16... h6 {[%clk 0:02:13.7]} 17. Be3 {[%clk 0:03:06.1]} 17... Rac8
{[%clk 0:02:09.6]} 18. Rb4 {[%clk 0:03:03.1]} 18... b6 {[%clk 0:02:06.1]} 19. a4
{[%clk 0:03:03.4]} 19... Rc6 {[%clk 0:01:48.7]} 20. Ra1 {[%clk 0:03:00]} 20...
Rc4 {[%clk 0:00:46.1]} 21. Rxc4 {[%clk 0:02:50.4]} 21... dxc4 {[%clk 0:00:47]}
22. a5 {[%clk 0:02:51.1]} 22... Rb8 {[%clk 0:00:46.3]} 23. axb6 {[%clk
0:01:23.9]} 23... axb6 {[%clk 0:00:47.2]} 24. Ra7 {[%clk 0:01:22.5]} 24... b5
{[%clk 0:00:46.3]} 25. Bd4 {[%clk 0:01:21.1]} 25... b4 {[%clk 0:00:44.3]} 26.
cxb4 {[%clk 0:01:20.4]} 26... Rxb4 {[%clk 0:00:45.2]} 1/2-1/2

[Event "*** Titled Tuesday Blitz"]
[Site "Chess.com"]
[Date "2021.02.02"]
[Round "2"]
[White "OlifantCZ"]
[Black "Iball95"]
[Result "0-1"]
[WhiteElo "2160"]
[BlackElo "2609"]
[TimeControl "180+1"]
[EndTime "10:17:42 PST"]
[Termination "Iball95 won by resignation"]

1. c4 {[%clk 0:03:00.9]} 1... Nf6 {[%clk 0:02:57.9]} 2. g3 {[%clk 0:03:00.6]}
2... c5 {[%clk 0:02:57.6]} 3. Bg2 {[%clk 0:03:00.9]} 3... Nc6 {[%clk 0:02:57.9]}
4. Nc3 {[%clk 0:03:01.3]} 4... g6 {[%clk 0:02:57.3]} 5. e4 {[%clk 0:02:58.6]}
5... Bg7 {[%clk 0:02:57.5]} 6. Nge2 {[%clk 0:02:57.3]} 6... O-O {[%clk
0:02:57.5]} 7. O-O {[%clk 0:02:58]} 7... d6 {[%clk 0:02:56.4]} 8. d3 {[%clk
0:02:55]} 8... a6 {[%clk 0:02:56]} 9. h3 {[%clk 0:02:54.5]} 9... Rb8 {[%clk
0:02:55.1]} 10. a4 {[%clk 0:02:55.1]} 10... Nd4 {[%clk 0:02:54.6]} 11. Nxd4
{[%clk 0:02:54.5]} 11... cxd4 {[%clk 0:02:55.5]} 12. Ne2 {[%clk 0:02:55.1]}
12... Nd7 {[%clk 0:02:55.9]} 13. b4 {[%clk 0:02:52.5]} 13... a5 {[%clk
0:02:52.9]} 14. Bd2 {[%clk 0:02:50.5]} 14... axb4 {[%clk 0:02:45.4]} 15. Bxb4
{[%clk 0:02:50]} 15... Nc5 {[%clk 0:02:46.3]} 16. Bxc5 {[%clk 0:02:48]} 16...
dxc5 {[%clk 0:02:45.5]} 17. f4 {[%clk 0:02:47]} 17... b6 {[%clk 0:02:40.3]} 18.
g4 {[%clk 0:02:39.7]} 18... Bd7 {[%clk 0:02:37.3]} 19. f5 {[%clk 0:02:36.7]}
19... Qc7 {[%clk 0:02:30.6]} 20. Nf4 {[%clk 0:02:29.2]} 20... Bc6 {[%clk
0:02:29.2]} 21. Nd5 {[%clk 0:02:24.2]} 21... Bxd5 {[%clk 0:02:27.9]} 22. exd5
{[%clk 0:02:24.5]} 22... Bh6 {[%clk 0:02:23.2]} 23. Qf3 {[%clk 0:02:14.4]} 23...
Be3+ {[%clk 0:02:17.5]} 24. Kh1 {[%clk 0:02:14.1]} 24... Ra8 {[%clk 0:02:14]}
25. Qe4 {[%clk 0:01:54.5]} 25... Qd6 {[%clk 0:02:05.9]} 26. Rfb1 {[%clk
0:01:33.6]} 26... Ra6 {[%clk 0:01:59.1]} 27. Bf3 {[%clk 0:01:31.6]} 27... Qg3
{[%clk 0:01:57.3]} 28. Bg2 {[%clk 0:01:30.6]} 28... Bf4 {[%clk 0:01:56.2]} 29.
Kg1 {[%clk 0:01:29.7]} 29... Qh2+ {[%clk 0:01:54.3]} 30. Kf1 {[%clk 0:01:29.8]}
30... Be3 {[%clk 0:01:54.3]} 31. Qf3 {[%clk 0:01:25.1]} 31... Rfa8 {[%clk
0:01:50.8]} 32. f6 {[%clk 0:01:05.2]} 32... exf6 {[%clk 0:01:47.9]} 33. d6
{[%clk 0:01:04.5]} 33... Qxd6 {[%clk 0:01:46.6]} 34. Rb5 {[%clk 0:01:00.8]}
34... Rxa4 {[%clk 0:01:44.4]} 35. Qxa8+ {[%clk 0:00:58.9]} 35... Rxa8 {[%clk
0:01:44]} 36. Rxa8+ {[%clk 0:00:58.8]} 36... Kg7 {[%clk 0:01:44.5]} 37. Ra7
{[%clk 0:00:56]} 37... Qg3 {[%clk 0:01:41.6]} 38. Ke2 {[%clk 0:00:52.4]} 38...
Qf2+ {[%clk 0:01:40.6]} 0-1

[Event "*** Titled Tuesday Blitz"]
[Site "Chess.com"]
[Date "2021.02.02"]
[Round "2"]
[White "cukin84"]
[Black "Leo_C"]
[Result "0-1"]
[WhiteElo "2131"]
[BlackElo "2405"]
[TimeControl "180+1"]
[EndTime "10:17:42 PST"]
[Termination "Leo_C won by checkmate"]

1. e4 {[%clk 0:03:00.9]} 1... Nf6 {[%clk 0:02:59]} 2. e5 {[%clk 0:03:00.5]} 2...
Nd5 {[%clk 0:02:59.1]} 3. d4 {[%clk 0:03:00.4]} 3... d6 {[%clk 0:02:58.5]} 4. c4
{[%clk 0:03:00.5]} 4... Nb6 {[%clk 0:02:58.6]} 5. exd6 {[%clk 0:03:00.8]} 5...
cxd6 {[%clk 0:02:59.5]} 6. Nc3 {[%clk 0:03:01]} 6... g6 {[%clk 0:02:59.6]} 7.
Nf3 {[%clk 0:03:00.5]} 7... Bg7 {[%clk 0:02:59.6]} 8. Be3 {[%clk 0:03:00]} 8...
O-O {[%clk 0:02:58.3]} 9. Be2 {[%clk 0:02:59.9]} 9... Bg4 {[%clk 0:02:56.2]} 10.
b3 {[%clk 0:02:56.3]} 10... Nc6 {[%clk 0:02:55.3]} 11. O-O {[%clk 0:02:55.6]}
11... d5 {[%clk 0:02:54.2]} 12. c5 {[%clk 0:02:55.2]} 12... Nc8 {[%clk
0:02:53.6]} 13. Rb1 {[%clk 0:02:54.6]} 13... e6 {[%clk 0:02:51.4]} 14. b4 {[%clk
0:02:51.9]} 14... a6 {[%clk 0:02:50.9]} 15. a4 {[%clk 0:02:51.4]} 15... Bxf3
{[%clk 0:02:40.8]} 16. Bxf3 {[%clk 0:02:48.8]} 16... e5 {[%clk 0:02:39.1]} 17.
Nxd5 {[%clk 0:02:42.9]} 17... exd4 {[%clk 0:02:37.4]} 18. Bf4 {[%clk 0:02:34.4]}
18... g5 {[%clk 0:02:32.5]} 19. Bc7 {[%clk 0:02:29.8]} 19... Qd7 {[%clk
0:02:30.4]} 20. h3 {[%clk 0:02:22.9]} 20... h5 {[%clk 0:02:21.6]} 21. Qd2 {[%clk
0:02:16.3]} 21... g4 {[%clk 0:02:14.3]} 22. hxg4 {[%clk 0:02:14.7]} 22... hxg4
{[%clk 0:02:12.1]} 23. Qg5 {[%clk 0:02:13.6]} 23... f5 {[%clk 0:02:05.6]} 24.
Nb6 {[%clk 0:01:40.3]} 24... Nxb6 {[%clk 0:01:55.7]} 25. Bxc6 {[%clk 0:01:38.7]}
25... Qxc7 {[%clk 0:01:52.2]} 26. cxb6 {[%clk 0:01:19.5]} 26... Qxc6 {[%clk
0:01:50.7]} 27. a5 {[%clk 0:01:19.4]} 27... Qh6 {[%clk 0:01:35.3]} 28. Qe7
{[%clk 0:01:17.2]} 28... Rf7 {[%clk 0:01:31.4]} 29. Qc5 {[%clk 0:01:06.5]} 29...
g3 {[%clk 0:01:16.7]} 30. Rb3 {[%clk 0:00:56.4]} 30... Qh2# {[%clk 0:01:15.2]}
0-1

[Event "*** Titled Tuesday Blitz"]
[Site "Chess.com"]
[Date "2021.02.02"]
[Round "2"]
[White "zimmm36"]
[Black "LileKoridze"]
[Result "0-1"]
[WhiteElo "2016"]
[BlackElo "2382"]
[TimeControl "180+1"]
[EndTime "10:17:44 PST"]
[Termination "LileKoridze won by resignation"]

1. d4 {[%clk 0:03:00.9]} 1... Nf6 {[%clk 0:02:59.7]} 2. c4 {[%clk 0:03:00]} 2...
e6 {[%clk 0:03:00.2]} 3. g3 {[%clk 0:03:00]} 3... d5 {[%clk 0:03:00.2]} 4. Nf3
{[%clk 0:02:59.4]} 4... Bb4+ {[%clk 0:03:00.3]} 5. Bd2 {[%clk 0:02:57.2]} 5...
Be7 {[%clk 0:02:58.3]} 6. Bg2 {[%clk 0:02:57]} 6... O-O {[%clk 0:02:58.2]} 7.
O-O {[%clk 0:02:57]} 7... c6 {[%clk 0:02:58.1]} 8. Qc2 {[%clk 0:02:56.3]} 8...
b6 {[%clk 0:02:57.1]} 9. Bf4 {[%clk 0:02:54.6]} 9... Bb7 {[%clk 0:02:48.4]} 10.
cxd5 {[%clk 0:02:48.8]} 10... cxd5 {[%clk 0:02:29.9]} 11. Rc1 {[%clk 0:02:47.8]}
11... Nc6 {[%clk 0:02:29.3]} 12. Nc3 {[%clk 0:02:42.3]} 12... Rc8 {[%clk
0:02:28.6]} 13. Nb5 {[%clk 0:02:38.8]} 13... Nxd4 {[%clk 0:02:16.1]} 14. Nfxd4
{[%clk 0:02:17]} 14... Rxc2 {[%clk 0:02:15.4]} 15. Rxc2 {[%clk 0:02:17.9]} 15...
a6 {[%clk 0:01:24.8]} 16. Na7 {[%clk 0:02:14.8]} 16... Qa8 {[%clk 0:01:20.3]}
17. Rc7 {[%clk 0:02:12.6]} 17... Bd8 {[%clk 0:01:19.7]} 18. Rxb7 {[%clk
0:02:02.6]} 18... Qxb7 {[%clk 0:01:19.3]} 19. Nac6 {[%clk 0:02:03.5]} 19... Bc7
{[%clk 0:01:13.3]} 20. Rc1 {[%clk 0:02:02.2]} 20... Bxf4 {[%clk 0:01:12.9]} 21.
gxf4 {[%clk 0:02:03.1]} 21... Ne4 {[%clk 0:01:12.4]} 22. Bxe4 {[%clk 0:01:59.5]}
22... dxe4 {[%clk 0:01:12.1]} 23. e3 {[%clk 0:01:59]} 23... h6 {[%clk
0:01:10.5]} 24. b4 {[%clk 0:01:53.1]} 24... Qd7 {[%clk 0:01:01.6]} 25. a4 {[%clk
0:01:50.3]} 25... Kh7 {[%clk 0:00:43.8]} 26. Rc4 {[%clk 0:01:43.8]} 26... Qd5
{[%clk 0:00:42]} 27. Ne5 {[%clk 0:01:41.2]} 27... f6 {[%clk 0:00:36.6]} 28. Rc7
{[%clk 0:01:35.2]} 28... fxe5 {[%clk 0:00:33.8]} 29. fxe5 {[%clk 0:01:35.2]}
29... Qxe5 {[%clk 0:00:33.5]} 30. Kf1 {[%clk 0:01:35.8]} 30... Qxc7 {[%clk
0:00:33.5]} 0-1

[Event "*** Titled Tuesday Blitz"]
[Site "Chess.com"]
[Date "2021.02.02"]
[Round "2"]
[White "xberli"]
[Black "Agoking701"]
[Result "1-0"]
[WhiteElo "2497"]
[BlackElo "2295"]
[TimeControl "180+1"]
[EndTime "10:17:50 PST"]
[Termination "xberli won by resignation"]

1. c4 {[%clk 0:03:00.9]} 1... e5 {[%clk 0:02:56.8]} 2. Nc3 {[%clk 0:03:00.7]}
2... b6 {[%clk 0:02:53.3]} 3. Nf3 {[%clk 0:02:58.2]} 3... Nc6 {[%clk 0:02:45.2]}
4. e3 {[%clk 0:02:55.2]} 4... Bb7 {[%clk 0:02:44.6]} 5. g3 {[%clk 0:02:54.4]}
5... f5 {[%clk 0:02:38.3]} 6. Bg2 {[%clk 0:02:48]} 6... e4 {[%clk 0:02:26.3]} 7.
Nh4 {[%clk 0:02:44.7]} 7... Nh6 {[%clk 0:01:50.4]} 8. d4 {[%clk 0:02:35.2]} 8...
g6 {[%clk 0:01:18]} 9. Bh3 {[%clk 0:02:11.1]} 9... Be7 {[%clk 0:01:09.4]} 10.
Nxf5 {[%clk 0:02:04.4]} 10... Nxf5 {[%clk 0:00:58.3]} 11. Bxf5 {[%clk 0:02:04]}
11... gxf5 {[%clk 0:00:58.4]} 12. Qh5+ {[%clk 0:02:04.4]} 12... Kf8 {[%clk
0:00:58.9]} 13. Qxf5+ {[%clk 0:02:04.5]} 13... Kg7 {[%clk 0:00:55.9]} 14. Qg4+
{[%clk 0:01:56.7]} 14... Kf7 {[%clk 0:00:47.2]} 15. f3 {[%clk 0:01:53.4]} 15...
Nb4 {[%clk 0:00:31.7]} 16. O-O {[%clk 0:01:48.9]} 16... Bf6 {[%clk 0:00:15.8]}
17. fxe4 {[%clk 0:01:46.8]} 17... Ke8 {[%clk 0:00:09.8]} 18. e5 {[%clk
0:01:43.1]} 18... Rf8 {[%clk 0:00:03.7]} 19. e4 {[%clk 0:01:38.6]} 19... Nd3
{[%clk 0:00:02.2]} 20. Qh5+ {[%clk 0:01:36.5]} 20... Ke7 {[%clk 0:00:01.9]} 21.
exf6+ {[%clk 0:01:34.5]} 1-0

[Event "*** Titled Tuesday Blitz"]
[Site "Chess.com"]
[Date "2021.02.02"]
[Round "2"]
[White "GiorgianBarbosa"]
[Black "Lagmantr"]
[Result "0-1"]
[WhiteElo "2503"]
[BlackElo "2759"]
[TimeControl "180+1"]
[EndTime "10:17:52 PST"]
[Termination "Lagmantr won by resignation"]

1. d4 {[%clk 0:03:00.9]} 1... Nf6 {[%clk 0:02:59.4]} 2. c4 {[%clk 0:03:01]} 2...
b6 {[%clk 0:02:58.3]} 3. Nc3 {[%clk 0:03:00.6]} 3... Bb7 {[%clk 0:02:59]} 4. Nf3
{[%clk 0:03:01]} 4... g6 {[%clk 0:02:58.4]} 5. g3 {[%clk 0:03:00.7]} 5... Bg7
{[%clk 0:02:58.6]} 6. Bg2 {[%clk 0:03:01.2]} 6... O-O {[%clk 0:02:59.1]} 7. O-O
{[%clk 0:03:01.2]} 7... e6 {[%clk 0:02:59.1]} 8. d5 {[%clk 0:03:00.1]} 8... exd5
{[%clk 0:02:58]} 9. cxd5 {[%clk 0:03:01]} 9... d6 {[%clk 0:02:58.5]} 10. Nd4
{[%clk 0:02:58.3]} 10... Nbd7 {[%clk 0:02:56.6]} 11. e4 {[%clk 0:02:54.6]} 11...
Re8 {[%clk 0:02:56.4]} 12. h3 {[%clk 0:02:50.2]} 12... Nc5 {[%clk 0:02:55.6]}
13. Re1 {[%clk 0:02:48.7]} 13... Qd7 {[%clk 0:02:54.5]} 14. b4 {[%clk
0:02:42.6]} 14... Na6 {[%clk 0:02:54.5]} 15. a3 {[%clk 0:02:41.5]} 15... Nxd5
{[%clk 0:02:41.8]} 16. Nxd5 {[%clk 0:02:27.3]} 16... Bxd5 {[%clk 0:02:41.2]} 17.
exd5 {[%clk 0:01:50.7]} 17... Rxe1+ {[%clk 0:02:42.1]} 18. Qxe1 {[%clk 0:01:51]}
18... Bxd4 {[%clk 0:02:43]} 19. Ra2 {[%clk 0:01:42.9]} 19... Re8 {[%clk
0:02:35.3]} 20. Re2 {[%clk 0:01:43.2]} 20... Rxe2 {[%clk 0:02:35.2]} 21. Qxe2
{[%clk 0:01:44.1]} 21... Nb8 {[%clk 0:02:32.2]} 22. Bf3 {[%clk 0:01:29]} 22...
Qxh3 {[%clk 0:02:26.9]} 23. Qe8+ {[%clk 0:00:54]} 23... Kg7 {[%clk 0:02:26.6]}
24. Bf4 {[%clk 0:00:54.6]} 24... Nd7 {[%clk 0:02:19.8]} 25. Qe2 {[%clk
0:00:41.5]} 25... Ne5 {[%clk 0:02:14.9]} 26. Bxe5+ {[%clk 0:00:39.4]} 26... dxe5
{[%clk 0:02:10.7]} 27. Bg2 {[%clk 0:00:20.9]} 27... Qxg3 {[%clk 0:02:10.8]} 28.
Kf1 {[%clk 0:00:21.6]} 28... Qf4 {[%clk 0:02:10.7]} 29. Bf3 {[%clk 0:00:17.8]}
29... h5 {[%clk 0:02:09.3]} 30. Qd3 {[%clk 0:00:17]} 30... h4 {[%clk 0:02:07.3]}
31. Ke2 {[%clk 0:00:16.5]} 31... g5 {[%clk 0:02:05.5]} 32. Qc2 {[%clk
0:00:11.3]} 32... g4 {[%clk 0:02:04.2]} 33. Be4 {[%clk 0:00:10.9]} 33... Qxf2+
{[%clk 0:02:04.2]} 34. Kd3 {[%clk 0:00:11.6]} 34... Qxc2+ {[%clk 0:02:02.2]} 35.
Kxc2 {[%clk 0:00:12.5]} 35... Kh6 {[%clk 0:02:02.2]} 0-1

[Event "*** Titled Tuesday Blitz"]
[Site "Chess.com"]
[Date "2021.02.02"]
[Round "2"]
[White "LiamVrolijk"]
[Black "Snegokhod"]
[Result "1-0"]
[WhiteElo "2837"]
[BlackElo "2531"]
[TimeControl "180+1"]
[EndTime "10:18:00 PST"]
[Termination "LiamVrolijk won by checkmate"]

1. d4 {[%clk 0:03:00.9]} 1... Nf6 {[%clk 0:02:59.5]} 2. c4 {[%clk 0:03:01]} 2...
g6 {[%clk 0:02:59.4]} 3. Nc3 {[%clk 0:03:00.5]} 3... d5 {[%clk 0:02:59.5]} 4.
cxd5 {[%clk 0:02:58]} 4... Nxd5 {[%clk 0:02:59.5]} 5. e4 {[%clk 0:02:58.6]} 5...
Nxc3 {[%clk 0:02:59.7]} 6. bxc3 {[%clk 0:02:59.5]} 6... Bg7 {[%clk 0:03:00.2]}
7. Bc4 {[%clk 0:03:00.1]} 7... O-O {[%clk 0:02:59.6]} 8. Ne2 {[%clk 0:03:00.5]}
8... Nc6 {[%clk 0:02:59.7]} 9. Be3 {[%clk 0:02:55.2]} 9... Qd7 {[%clk
0:02:59.6]} 10. h4 {[%clk 0:02:52.3]} 10... Na5 {[%clk 0:02:58.7]} 11. Bd3
{[%clk 0:02:51.6]} 11... c5 {[%clk 0:02:59]} 12. h5 {[%clk 0:02:47.4]} 12... b5
{[%clk 0:02:56.4]} 13. hxg6 {[%clk 0:02:33]} 13... hxg6 {[%clk 0:02:54.5]} 14.
e5 {[%clk 0:02:30.5]} 14... Bb7 {[%clk 0:02:51.8]} 15. Nf4 {[%clk 0:02:27.1]}
15... Nc4 {[%clk 0:02:44.2]} 16. e6 {[%clk 0:02:16.7]} 16... fxe6 {[%clk
0:02:37.4]} 17. Bxg6 {[%clk 0:02:11.2]} 17... Rxf4 {[%clk 0:02:31]} 18. Bxf4
{[%clk 0:01:59.1]} 18... cxd4 {[%clk 0:02:28.3]} 19. Qh5 {[%clk 0:01:40.4]}
19... Qd5 {[%clk 0:02:22.1]} 20. Qh7+ {[%clk 0:01:25.2]} 20... Kf8 {[%clk
0:02:22]} 21. Bh6 {[%clk 0:01:25.7]} 21... Qe5+ {[%clk 0:02:10.9]} 22. Kf1
{[%clk 0:01:25.9]} 22... Nd2+ {[%clk 0:01:32.3]} 23. Kg1 {[%clk 0:01:20.6]}
23... Bxh6 {[%clk 0:00:16.1]} 24. Qf7# {[%clk 0:01:18.5]} 1-0

[Event "*** Titled Tuesday Blitz"]
[Site "Chess.com"]
[Date "2021.02.02"]
[Round "2"]
[White "dosto07"]
[Black "VladimirBugayev"]
[Result "0-1"]
[WhiteElo "2428"]
[BlackElo "2239"]
[TimeControl "180+1"]
[EndTime "10:18:00 PST"]
[Termination "VladimirBugayev won by resignation"]

1. e4 {[%clk 0:03:00.9]} 1... c6 {[%clk 0:02:59.5]} 2. d4 {[%clk 0:02:59.8]}
2... d5 {[%clk 0:03:00.1]} 3. Nc3 {[%clk 0:02:59.7]} 3... dxe4 {[%clk
0:02:59.6]} 4. Nxe4 {[%clk 0:03:00.3]} 4... Nf6 {[%clk 0:03:00.3]} 5. Nxf6+
{[%clk 0:02:59.7]} 5... exf6 {[%clk 0:03:01.2]} 6. c3 {[%clk 0:02:59.9]} 6...
Bd6 {[%clk 0:03:01.6]} 7. Bd3 {[%clk 0:03:00.3]} 7... O-O {[%clk 0:03:02.1]} 8.
Ne2 {[%clk 0:03:00.9]} 8... Re8 {[%clk 0:03:01.9]} 9. Qc2 {[%clk 0:03:01.5]}
9... h5 {[%clk 0:03:01.9]} 10. Be3 {[%clk 0:02:59.6]} 10... Nd7 {[%clk
0:02:58.5]} 11. O-O-O {[%clk 0:02:58.8]} 11... b5 {[%clk 0:02:56.8]} 12. d5
{[%clk 0:02:55.6]} 12... c5 {[%clk 0:02:56]} 13. Bxb5 {[%clk 0:02:54.7]} 13...
Rb8 {[%clk 0:02:45]} 14. c4 {[%clk 0:02:47.2]} 14... a6 {[%clk 0:02:41.4]} 15.
Bc6 {[%clk 0:02:40.3]} 15... Qa5 {[%clk 0:02:22]} 16. Nc3 {[%clk 0:02:35.4]}
16... Rxe3 {[%clk 0:02:09.6]} 17. fxe3 {[%clk 0:02:34.2]} 17... Ne5 {[%clk
0:02:09.6]} 18. Qa4 {[%clk 0:02:09.7]} 18... Qc7 {[%clk 0:02:02.1]} 19. a3
{[%clk 0:01:42.8]} 19... Qb6 {[%clk 0:01:43.2]} 20. Rd2 {[%clk 0:01:35.8]} 20...
Nd3+ {[%clk 0:01:36.5]} 21. Rxd3 {[%clk 0:01:30.4]} 21... Qxb2+ {[%clk
0:01:36.6]} 22. Kd1 {[%clk 0:01:29.7]} 22... Qa1+ {[%clk 0:01:16.8]} 23. Ke2
{[%clk 0:01:23.4]} 23... Qxh1 {[%clk 0:01:14.3]} 24. Ne4 {[%clk 0:01:05]} 24...
Qxg2+ {[%clk 0:01:02.2]} 25. Nf2 {[%clk 0:01:04.8]} 25... Bg4+ {[%clk
0:00:56.8]} 26. Ke1 {[%clk 0:01:04.6]} 26... Rb1+ {[%clk 0:00:51.6]} 27. Rd1
{[%clk 0:01:00.2]} 27... Qg1+ {[%clk 0:00:50.1]} 28. Kd2 {[%clk 0:00:57.7]}
28... Qxf2+ {[%clk 0:00:50.4]} 0-1